[Event "DVM U10 2024"]
[Site "Duesseldorf"]
[Date "2024.12.27"]
[Round "3"]
[White "Cheng, Louis"]
[Black "Tolle, Jonathan"]
[Result "1-0"]
[ECO "C44"]
[WhiteElo "2087"]
[BlackElo "1149"]
[Annotator "RC"]
[PlyCount "72"]
[EventDate "2024.12.23"]
[EventType "team-tourn"]
[EventRounds "7"]
[EventCountry "GER"]
[SourceTitle "playchess.com"]
[Source "ChessBase"]
[SourceQuality "1"]
[TimeControl "3300+5"]

1. e4 {[%emt 0:00:02]} e5 {[%emt 0:00:04]} 2. Nf3 {[%emt 0:00:04]} Nc6 {[%emt 0:00:04]} 3. d4 {[%emt 0:00:07]} exd4 {[%emt 0:00:09]} 4. Bc4 {[%emt 0:00:04]} Bc5 {[%emt 0:00:17]} 5. c3 {[%emt 0:00:07]} dxc3 {[%emt 0:00:23]} 6. bxc3 {[%emt 0:00:10]} Nf6 {[%emt 0:00:25]} 7. e5 {[%emt 0:00:34]} Ng4 {[%emt 0:00:47]} 8. Bxf7+ {[%emt 0:00:31]} Ke7 {[%emt 0:00:28]} 9. Bg5+ {[%emt 0:00:46]} Nf6 {[%emt 0:00:15]} 10. exf6+ {[%emt 0:00:08]} gxf6 {[%emt 0:00:25]} 11. Bh4 {[%emt 0:00:47]} Qf8 {[%emt 0:00:34]} 12. Qd5 {[%emt 0:01:44]} Ba3 {[%emt 0:00:24]} 13. Nxa3 {[%emt 0:00:17]} Qxf7 {[%emt 0:00:12]} 14. Qxf7+ {[%emt 0:00:26]} Kxf7 {[%emt 0:00:04]} 15. O-O {[%emt 0:00:30]} d6 {[%emt 0:00:11]} 16. Rfe1 {[%emt 0:00:47]} Bg4 {[%emt 0:00:06]} 17. Nd2 {[%emt 0:00:26]} Rhg8 {[%emt 0:00:19]} 18. Re3 {[%emt 0:00:32]} Rad8 {[%emt 0:05:26]} 19. h3 {[%emt 0:01:14]} Bc8 {[%emt 0:00:16]} 20. Rf3 {[%emt 0:00:45]} Rg6 {[%emt 0:00:36]} 21. Ne4 {[%emt 0:01:52]} Ne5 {[%emt 0:00:25]} 22. Rf4 {[%emt 0:01:56]} Bxh3 {[%emt 0:00:26]} 23. Ng5+ {[%emt 0:00:09]} Ke7 {[%emt 0:00:26]} 24. Nxh3 {[%emt 0:00:17]} Rf8 {[%emt 0:00:13]} 25. Re4 {[%emt 0:01:16]} Rfg8 {[%emt 0:00:40]} 26. Nf4 {[%emt 0:00:42]} Rg4 {[%emt 0:00:18]} 27. Nd5+ {[%emt 0:01:06]} Ke6 {[%emt 0:00:20]} 28. Rxg4 {[%emt 0:02:15]} Rxg4 {[%emt 0:00:14]} 29. Nxc7+ {[%emt 0:02:10]} Kd7 {[%emt 0:00:14]} 30. Nd5 {[%emt 0:01:18]} Rxh4 {[%emt 0:00:15]} 31. Nxf6+ {[%emt 0:00:15]} Ke6 {[%emt 0:00:12]} 32. Ne8 {[%emt 0:00:29]} Rg4 {[%emt 0:00:28]} 33. Re1 {[%emt 0:01:09]} Kd5 {[%emt 0:01:34]} 34. Nf6+ {[%emt 0:00:15]} Kc6 {[%emt 0:00:29]} 35. Nxg4 {[%emt 0:00:12]} Nxg4 {[%emt 0:00:15]} 36. Re4 {[%emt 0:03:07]} Kd5 {[%emt 0:02:35]} 1-0

[Event "DVM U10 2024"]
[Site "Duesseldorf"]
[Date "2024.12.27"]
[Round "3"]
[White "Mueller, Konstantin"]
[Black "Barsov, Mikhail"]
[Result "1-0"]
[ECO "B45"]
[WhiteElo "1957"]
[BlackElo "1737"]
[Annotator "RC"]
[PlyCount "71"]
[EventDate "2024.12.23"]
[EventType "team-tourn"]
[EventRounds "7"]
[EventCountry "GER"]
[SourceTitle "playchess.com"]
[Source "ChessBase"]
[SourceQuality "1"]
[TimeControl "3300+5"]

1. e4 {[%emt 0:00:02]} c5 {[%emt 0:00:33]} 2. Nf3 {[%emt 0:00:05]} e6 {[%emt 0:00:04]} 3. d4 {[%emt 0:00:08]} cxd4 {[%emt 0:00:03]} 4. Nxd4 {[%emt 0:00:13]} Nf6 {[%emt 0:00:06]} 5. Nc3 {[%emt 0:00:09]} Nc6 {[%emt 0:00:03]} 6. Nxc6 {[%emt 0:00:45]} bxc6 {[%emt 0:00:04]} 7. e5 {[%emt 0:00:13]} Nd5 {[%emt 0:00:06]} 8. Ne4 {[%emt 0:00:12]} Qc7 {[%emt 0:06:46]} 9. f4 {[%emt 0:00:11]} Qb6 {[%emt 0:00:25]} 10. a3 {[%emt 0:03:11]} Ne3 {[%emt 0:07:22]} 11. Qd3 {[%emt 0:00:13]} Nxf1 {[%emt 0:00:51]} 12. Rxf1 {[%emt 0:00:11]} Ba6 {[%emt 0:01:09]} 13. c4 {[%emt 0:00:06]} Be7 {[%emt 0:03:28]} 14. Qc3 {[%emt 0:12:39]} O-O {[%emt 0:02:58]} 15. Be3 {[%emt 0:00:18]} c5 {[%emt 0:02:43]} 16. Rd1 {[%emt 0:02:56]} Qc6 {[%emt 0:00:54]} 17. Qd3 {[%emt 0:04:53]} Rab8 {[%emt 0:03:40]} 18. Rf2 {[%emt 0:00:36]} Rb7 {[%emt 0:01:58]} 19. Rdd2 {[%emt 0:01:47]} Rfb8 {[%emt 0:00:27]} 20. f5 {[%emt 0:06:01]} Rb3 {[%emt 0:01:07]} 21. Nc3 {[%emt 0:01:14]} R3b7 {[%emt 0:08:42]} 22. f6 {[%emt 0:00:47]} Bf8 {[%emt 0:00:58]} 23. Bg5 {[%emt 0:01:44]} g6 {[%emt 0:01:53]} 24. Qe3 {[%emt 0:02:20]} h5 {[%emt 0:02:11]} 25. Bh6 {[%emt 0:01:07]} Kh7 {[%emt 0:01:13]} 26. Bxf8 {[%emt 0:01:21]} Rxf8 {[%emt 0:00:06]} 27. Rd6 {[%emt 0:00:31]} Qc8 {[%emt 0:01:25]} 28. Rxa6 {[%emt 0:00:18]} Rb3 {[%emt 0:00:45]} 29. Rd6 {[%emt 0:00:43]} Qb7 {[%emt 0:01:26]} 30. Qd2 {[%emt 0:00:24]} Rd8 {[%emt 0:00:56]} 31. Re2 {[%emt 0:00:31]} Rb6 {[%emt 0:01:23]} 32. Ne4 {[%emt 0:00:28]} Rxd6 {[%emt 0:00:15]} 33. Nxd6 {[%emt 0:00:07]} Qc6 {[%emt 0:00:33]} 34. Nxf7 {[%emt 0:00:15]} Rf8 {[%emt 0:00:08]} 35. Qh6+ {[%emt 0:00:08]} Kg8 {[%emt 0:00:06]} 36. Qxg6# {[%emt 0:00:10]} 1-0

[Event "DVM U10 2024"]
[Site "Duesseldorf"]
[Date "2024.12.27"]
[Round "3"]
[White "Peters, Leopold"]
[Black "Schmidt, Fabian"]
[Result "0-1"]
[ECO "E51"]
[WhiteElo "1701"]
[BlackElo "1971"]
[Annotator "RC"]
[PlyCount "62"]
[EventDate "2024.12.23"]
[EventType "team-tourn"]
[EventRounds "7"]
[EventCountry "GER"]
[SourceTitle "playchess.com"]
[Source "ChessBase"]
[SourceQuality "1"]
[TimeControl "3300+5"]

1. d4 {[%emt 0:00:05]} Nf6 {[%emt 0:00:01]} 2. c4 {[%emt 0:00:14]} e6 {[%emt 0:00:04]} 3. Nc3 {[%emt 0:00:11]} d5 {[%emt 0:00:11]} 4. Nf3 {[%emt 0:00:47]} Bb4 {[%emt 0:00:07]} 5. a3 {[%emt 0:00:37]} Bxc3+ {[%emt 0:00:08]} 6. bxc3 {[%emt 0:00:10]} O-O {[%emt 0:00:19]} 7. e3 {[%emt 0:00:18]} c6 {[%emt 0:00:08]} 8. cxd5 {[%emt 0:00:34]} exd5 {[%emt 0:00:11]} 9. c4 {[%emt 0:00:11]} Ne4 {[%emt 0:01:20]} 10. Bd3 {[%emt 0:01:52]} Qa5+ {[%emt 0:00:31]} 11. Bd2 {[%emt 0:01:38]} Nxd2 {[%emt 0:00:11]} 12. Qxd2 {[%emt 0:00:21]} Qxd2+ {[%emt 0:00:57]} 13. Nxd2 {[%emt 0:00:13]} dxc4 {[%emt 0:00:18]} 14. Bxc4 {[%emt 0:00:17]} Nd7 {[%emt 0:00:58]} 15. O-O {[%emt 0:00:30]} Nf6 {[%emt 0:02:22]} 16. Rab1 {[%emt 0:01:15]} Rb8 {[%emt 0:00:40]} 17. Bd3 {[%emt 0:02:05]} Be6 {[%emt 0:00:26]} 18. Rfc1 {[%emt 0:03:08]} Nd5 {[%emt 0:00:47]} 19. Nf3 {[%emt 0:03:00]} h6 {[%emt 0:09:50]} 20. Ne5 {[%emt 0:02:57]} Rfd8 {[%emt 0:00:57]} 21. Bc4 {[%emt 0:01:05]} Nc7 {[%emt 0:10:31]} 22. Bxe6 {[%emt 0:01:29]} Nxe6 {[%emt 0:00:19]} 23. Rb2 {[%emt 0:01:09]} c5 {[%emt 0:04:03]} 24. dxc5 {[%emt 0:01:51]} Nxc5 {[%emt 0:00:16]} 25. Nf3 {[%emt 0:01:27]} Nd3 {[%emt 0:00:17]} 26. Rbc2 {[%emt 0:01:16]} Nxc1 {[%emt 0:00:16]} 27. Rxc1 {[%emt 0:00:06]} Rbc8 {[%emt 0:00:14]} 28. Rb1 {[%emt 0:02:23]} Rc3 {[%emt 0:00:20]} 29. g3 {[%emt 0:01:37]} b6 {[%emt 0:00:11]} 30. a4 {[%emt 0:00:55]} Ra3 {[%emt 0:00:41]} 31. Rb4 {[%emt 0:00:19]} Rd1+ {[%emt 0:00:48]} 0-1

[Event "DVM U10 2024"]
[Site "Duesseldorf"]
[Date "2024.12.27"]
[Round "3"]
[White "Schmidt, Jan"]
[Black "Luible, Sebastian"]
[Result "0-1"]
[ECO "D51"]
[WhiteElo "1688"]
[BlackElo "1104"]
[Annotator "NA RC"]
[PlyCount "32"]
[EventDate "2024.12.23"]
[EventType "team-tourn"]
[EventRounds "7"]
[EventCountry "GER"]
[SourceTitle "playchess.com"]
[Source "ChessBase"]
[SourceQuality "1"]
[TimeControl "3300+5"]

1. d4 {[%emt 0:00:03]} d5 {[%emt 0:00:03]} 2. c4 {[%emt 0:00:06]} e6 {[%emt 0:00:05]} 3. Nc3 {[%emt 0:00:07]} Nf6 {[%emt 0:00:06]} 4. Nf3 {[%emt 0:00:04]} Nbd7 {[%emt 0:00:08]} 5. Bg5 {[%emt 0:00:09]} c5 {[%emt 0:00:12]} 6. cxd5 {[%emt 0:01:00]} cxd4 {[%emt 0:01:06]} 7. Qxd4 {[%emt 0:00:58]} exd5 {[%emt 0:00:47]} 8. Nxd5 {[%emt 0:00:35]} Qa5+ {[%emt 0:01:00]} 9. Nc3 {[%emt 0:00:05]} Bc5 {[%emt 0:00:35]} 10. Qa4 {[%emt 0:01:12]} Qb6 {[%emt 0:00:38]} 11. e3 {[%emt 0:00:31]} Qxb2 {[%emt 0:00:23]} 12. Qd1 {[%emt 0:01:29]} Qxc3+ {[%emt 0:00:23]} 13. Nd2 {[%emt 0:00:06]} Ne4 {[%emt 0:02:08]} 14. Bf4 {[%emt 0:00:55]} Nxd2 {[%emt 0:00:18]} 15. Rc1 {[%emt 0:00:28]} Qa5 {[%emt 0:04:20]} 16. Qxd2 {[%emt 0:00:23]} Bb4 {[%emt 0:00:47]} 0-1

[Event "DVM U10 2024"]
[Site "Duesseldorf"]
[Date "2024.12.27"]
[Round "3"]
[White "Busch, Jonathan Luis"]
[Black "Vlad, Mark"]
[Result "0-1"]
[ECO "B01"]
[WhiteElo "1655"]
[BlackElo "1439"]
[Annotator "NA RC"]
[PlyCount "112"]
[EventDate "2024.12.23"]
[EventType "team-tourn"]
[EventRounds "7"]
[EventCountry "GER"]
[SourceTitle "playchess.com"]
[Source "ChessBase"]
[SourceQuality "1"]
[TimeControl "3300+5"]

1. e4 {[%emt 0:00:01]} d5 {[%emt 0:00:13]} 2. exd5 {[%emt 0:00:05]} Nf6 {[%emt 0:00:08]} 3. d4 {[%emt 0:00:21]} Nxd5 {[%emt 0:00:06]} 4. Nf3 {[%emt 0:00:21]} Bf5 {[%emt 0:00:34]} 5. Bc4 {[%emt 0:01:19]} Nb6 {[%emt 0:00:20]} 6. Bb3 {[%emt 0:00:18]} e6 {[%emt 0:00:43]} 7. Bg5 {[%emt 0:00:34]} f6 {[%emt 0:00:33]} 8. Bh4 {[%emt 0:01:18]} Nc6 {[%emt 0:00:47]} 9. a3 {[%emt 0:00:44]} Qd7 {[%emt 0:00:39]} 10. O-O {[%emt 0:01:20]} g5 {[%emt 0:00:36]} 11. Bg3 {[%emt 0:01:05]} h5 {[%emt 0:00:51]} 12. h4 {[%emt 0:02:08]} g4 {[%emt 0:01:55]} 13. d5 {[%emt 0:07:21]} O-O-O {[%emt 0:04:12]} 14. Nc3 {[%emt 0:00:52]} exd5 {[%emt 0:01:06]} 15. Nd4 {[%emt 0:00:49]} Na5 {[%emt 0:02:01]} 16. Ba2 {[%emt 0:01:06]} Nac4 {[%emt 0:01:32]} 17. Rb1 {[%emt 0:01:49]} Bg6 {[%emt 0:01:59]} 18. Ncb5 {[%emt 0:01:29]} Bd6 {[%emt 0:02:34]} 19. Nxa7+ {[%emt 0:06:15]} Kb8 {[%emt 0:00:19]} 20. Nab5 {[%emt 0:01:20]} Bxg3 {[%emt 0:00:36]} 21. fxg3 {[%emt 0:00:16]} Ne3 {[%emt 0:00:23]} 22. Qd2 {[%emt 0:02:48]} Nxf1 {[%emt 0:01:21]} 23. Rxf1 {[%emt 0:02:17]} c6 {[%emt 0:01:41]} 24. Qf4+ {[%emt 0:05:09]} Ka8 {[%emt 0:02:37]} 25. Nc7+ {[%emt 0:04:44]} Ka7 {[%emt 0:00:18]} 26. Nce6 {[%emt 0:01:10]} Rde8 {[%emt 0:01:41]} 27. Nc5 {[%emt 0:00:44]} Qe7 {[%emt 0:01:52]} 28. Nde6 {[%emt 0:00:54]} Bf7 {[%emt 0:01:43]} 29. Qb4 {[%emt 0:02:08]} Bxe6 {[%emt 0:02:42]} 30. Qa5+ {[%emt 0:01:53]} Kb8 {[%emt 0:00:14]} 31. Qxb6 {[%emt 0:00:22]} Bf7 {[%emt 0:02:28]} 32. a4 {[%emt 0:01:07]} Qe3+ {[%emt 0:00:21]} 33. Kh2 {[%emt 0:00:18]} Re7 {[%emt 0:03:28]} 34. a5 {[%emt 0:00:39]} Qe2 {[%emt 0:00:29]} 35. Rg1 {[%emt 0:00:29]} Qb5 {[%emt 0:00:17]} 36. Qxb5 {[%emt 0:00:52]} cxb5 {[%emt 0:00:07]} 37. Rf1 {[%emt 0:00:19]} Rc8 {[%emt 0:00:26]} 38. Nd3 {[%emt 0:00:17]} Rxc2 {[%emt 0:00:35]} 39. Rxf6 {[%emt 0:00:00]} Rd2 {[%emt 0:00:44]} 40. Nc5 {[%emt 0:00:18]} Rxb2 {[%emt 0:00:35]} 41. Bb3 {[%emt 0:00:12]} Rc7 {[%emt 0:00:35]} 42. Ne6 {[%emt 0:00:45]} Bxe6 {[%emt 0:00:24]} 43. Rxe6 {[%emt 0:00:05]} Rxb3 {[%emt 0:00:19]} 44. Rd6 {[%emt 0:00:09]} Rd3 {[%emt 0:00:23]} 45. a6 {[%emt 0:00:02]} bxa6 {[%emt 0:00:11]} 46. Rxa6 {[%emt 0:00:01]} Kb7 {[%emt 0:00:12]} 47. Rh6 {[%emt 0:00:02]} b4 {[%emt 0:00:15]} 48. Rxh5 {[%emt 0:00:03]} b3 {[%emt 0:00:09]} 49. Rg5 {[%emt 0:00:09]} b2 {[%emt 0:00:19]} 50. Rxg4 {[%emt 0:00:02]} b1=Q {[%emt 0:00:17]} 51. h5 {[%emt 0:00:04]} Rd1 {[%emt 0:00:15]} 52. Rb4+ {[%emt 0:00:10]} Qxb4 {[%emt 0:00:06]} 53. h6 {[%emt 0:00:08]} Rh7 {[%emt 0:00:21]} 54. g4 {[%emt 0:00:03]} Qxg4 {[%emt 0:00:19]} 55. g3 {[%emt 0:00:04]} Rxh6+ {[%emt 0:00:12]} 56. Kg2 {[%emt 0:00:01]} Qe2# {[%emt 0:00:18]} 0-1

[Event "DVM U10 2024"]
[Site "Duesseldorf"]
[Date "2024.12.27"]
[Round "3"]
[White "Satheesh, Dharshini"]
[Black "Schubert, Anton"]
[Result "1-0"]
[ECO "C78"]
[WhiteElo "1643"]
[BlackElo "824"]
[Annotator "NA RC"]
[PlyCount "61"]
[EventDate "2024.12.23"]
[EventType "team-tourn"]
[EventRounds "7"]
[EventCountry "GER"]
[SourceTitle "playchess.com"]
[Source "ChessBase"]
[SourceQuality "1"]
[TimeControl "3300+5"]

1. e4 {[%emt 0:00:03]} e5 {[%emt 0:00:01]} 2. Nf3 {[%emt 0:00:07]} Nc6 {[%emt 0:00:10]} 3. Bb5 {[%emt 0:00:05]} a6 {[%emt 0:00:15]} 4. Ba4 {[%emt 0:00:04]} b5 {[%emt 0:00:16]} 5. Bb3 {[%emt 0:00:05]} Bc5 {[%emt 0:00:21]} 6. O-O {[%emt 0:03:10]} Nf6 {[%emt 0:00:10]} 7. d3 {[%emt 0:00:29]} d6 {[%emt 0:00:12]} 8. Bg5 {[%emt 0:00:46]} h6 {[%emt 0:00:19]} 9. Bh4 {[%emt 0:00:29]} O-O {[%emt 0:00:20]} 10. h3 {[%emt 0:01:37]} Nd4 {[%emt 0:00:29]} 11. Nc3 {[%emt 0:03:12]} b4 {[%emt 0:00:33]} 12. Nd5 {[%emt 0:00:15]} g5 {[%emt 0:01:51]} 13. Nxd4 {[%emt 0:05:07]} Bxd4 {[%emt 0:00:30]} 14. Bg3 {[%emt 0:00:51]} Nxd5 {[%emt 0:00:46]} 15. Bxd5 {[%emt 0:00:26]} Bxb2 {[%emt 0:04:31]} 16. Rb1 {[%emt 0:00:13]} Bc3 {[%emt 0:00:32]} 17. Bxa8 {[%emt 0:00:03]} Be6 {[%emt 0:01:26]} 18. Bd5 {[%emt 0:00:17]} Bxd5 {[%emt 0:00:33]} 19. exd5 {[%emt 0:00:02]} Qd7 {[%emt 0:02:05]} 20. h4 {[%emt 0:01:27]} c6 {[%emt 0:00:28]} 21. hxg5 {[%emt 0:02:37]} hxg5 {[%emt 0:00:20]} 22. Qh5 {[%emt 0:04:11]} Bd2 {[%emt 0:01:17]} 23. Rbd1 {[%emt 0:00:34]} Bf4 {[%emt 0:00:52]} 24. Bxf4 {[%emt 0:00:03]} gxf4 {[%emt 0:00:44]} 25. Qg5+ {[%emt 0:00:14]} Kh8 {[%emt 0:00:05]} 26. f3 {[%emt 0:00:52]} cxd5 {[%emt 0:00:40]} 27. Kf2 {[%emt 0:00:14]} Qa7+ {[%emt 0:00:43]} 28. d4 {[%emt 0:01:17]} f6 {[%emt 0:01:49]} 29. Rh1+ {[%emt 0:00:04]} Qh7 {[%emt 0:00:27]} 30. Rxh7+ {[%emt 0:00:05]} Kxh7 {[%emt 0:00:27]} 31. Rh1# {[%emt 0:00:02]} 1-0

[Event "DVM U10 2024"]
[Site "Duesseldorf"]
[Date "2024.12.27"]
[Round "3"]
[White "Kukhtichev, Maksim"]
[Black "Nikolic, Luka"]
[Result "1-0"]
[ECO "B12"]
[WhiteElo "1639"]
[BlackElo "1579"]
[Annotator "NA RC"]
[PlyCount "89"]
[EventDate "2024.12.23"]
[EventType "team-tourn"]
[EventRounds "7"]
[EventCountry "GER"]
[SourceTitle "playchess.com"]
[Source "ChessBase"]
[SourceQuality "1"]
[TimeControl "3300+5"]

1. e4 {[%emt 0:00:03]} c6 {[%emt 0:00:04]} 2. d4 {[%emt 0:00:04]} d5 {[%emt 0:00:03]} 3. e5 {[%emt 0:00:03]} Bf5 {[%emt 0:00:10]} 4. Nf3 {[%emt 0:00:04]} e6 {[%emt 0:00:10]} 5. Nh4 {[%emt 0:00:46]} Bg6 {[%emt 0:00:26]} 6. Nxg6 {[%emt 0:00:10]} hxg6 {[%emt 0:00:07]} 7. Be3 {[%emt 0:00:15]} Ne7 {[%emt 0:00:34]} 8. Nc3 {[%emt 0:00:14]} Nf5 {[%emt 0:00:41]} 9. Qd2 {[%emt 0:00:27]} Qb6 {[%emt 0:00:21]} 10. O-O-O {[%emt 0:00:29]} Bb4 {[%emt 0:00:44]} 11. g4 {[%emt 0:00:05]} Nh4 {[%emt 0:03:21]} 12. Be2 {[%emt 0:00:53]} Ng2 {[%emt 0:04:34]} 13. a3 {[%emt 0:00:23]} Bxc3 {[%emt 0:01:16]} 14. Qxc3 {[%emt 0:00:12]} Nxe3 {[%emt 0:01:31]} 15. Qxe3 {[%emt 0:00:11]} Nd7 {[%emt 0:00:43]} 16. f4 {[%emt 0:00:51]} O-O-O {[%emt 0:02:03]} 17. Rd3 {[%emt 0:00:15]} Rh7 {[%emt 0:02:01]} 18. Qf2 {[%emt 0:02:40]} Kb8 {[%emt 0:01:25]} 19. Rb3 {[%emt 0:01:00]} Qc7 {[%emt 0:02:10]} 20. f5 {[%emt 0:02:21]} Rf8 {[%emt 0:02:05]} 21. Rf3 {[%emt 0:00:30]} exf5 {[%emt 0:02:32]} 22. gxf5 {[%emt 0:00:05]} gxf5 {[%emt 0:00:12]} 23. Rxf5 {[%emt 0:00:08]} f6 {[%emt 0:00:53]} 24. e6 {[%emt 0:02:13]} g6 {[%emt 0:01:29]} 25. Rf3 {[%emt 0:00:37]} Nb6 {[%emt 0:02:56]} 26. Rxf6 {[%emt 0:00:07]} Re8 {[%emt 0:00:46]} 27. Rxg6 {[%emt 0:00:37]} Rhe7 {[%emt 0:01:20]} 28. Bg4 {[%emt 0:00:20]} Qd6 {[%emt 0:00:36]} 29. h4 {[%emt 0:00:39]} Rh7 {[%emt 0:02:13]} 30. h5 {[%emt 0:00:17]} Rf8 {[%emt 0:00:11]} 31. Rf6 {[%emt 0:01:19]} Rg8 {[%emt 0:02:11]} 32. Bf5 {[%emt 0:00:41]} Rhg7 {[%emt 0:01:29]} 33. Bg6 {[%emt 0:01:54]} Nc8 {[%emt 0:01:35]} 34. Re1 {[%emt 0:01:45]} Ne7 {[%emt 0:00:15]} 35. Rf8+ {[%emt 0:00:33]} Rxf8 {[%emt 0:01:33]} 36. Qxf8+ {[%emt 0:00:05]} Nc8 {[%emt 0:00:17]} 37. Qxg7 {[%emt 0:00:12]} Qf4+ {[%emt 0:00:08]} 38. Kb1 {[%emt 0:00:08]} Qf2 {[%emt 0:00:15]} 39. Qe5+ {[%emt 0:00:10]} Ka8 {[%emt 0:00:15]} 40. e7 {[%emt 0:00:06]} a6 {[%emt 0:00:06]} 41. e8=Q {[%emt 0:00:08]} Ka7 {[%emt 0:00:12]} 42. Qxc8 {[%emt 0:00:16]} Kb6 {[%emt 0:00:12]} 43. Qec7+ {[%emt 0:00:25]} Kb5 {[%emt 0:01:39]} 44. Q8xb7+ {[%emt 0:00:20]} Ka4 {[%emt 0:00:14]} 45. Qb4# {[%emt 0:00:08]} 1-0

[Event "DVM U10 2024"]
[Site "Duesseldorf"]
[Date "2024.12.27"]
[Round "3"]
[White "Braren, Ove Neelis"]
[Black "Zielke, Mika"]
[Result "1-0"]
[ECO "C47"]
[WhiteElo "1634"]
[BlackElo "1623"]
[Annotator "NA RC"]
[PlyCount "55"]
[EventDate "2024.12.23"]
[EventType "team-tourn"]
[EventRounds "7"]
[EventCountry "GER"]
[SourceTitle "playchess.com"]
[Source "ChessBase"]
[SourceQuality "1"]
[TimeControl "3300+5"]

1. e4 {[%emt 0:00:12]} e5 {[%emt 0:00:10]} 2. Nf3 {[%emt 0:00:13]} Nc6 {[%emt 0:00:08]} 3. d4 {[%emt 0:00:20]} exd4 {[%emt 0:00:17]} 4. Nxd4 {[%emt 0:00:14]} Nf6 {[%emt 0:00:14]} 5. Nc3 {[%emt 0:00:11]} Bb4 {[%emt 0:00:14]} 6. Nxc6 {[%emt 0:00:19]} bxc6 {[%emt 0:00:11]} 7. Bd3 {[%emt 0:00:10]} d5 {[%emt 0:00:19]} 8. exd5 {[%emt 0:00:19]} Nxd5 {[%emt 0:01:21]} 9. Bd2 {[%emt 0:04:59]} Nxc3 {[%emt 0:00:27]} 10. bxc3 {[%emt 0:00:48]} Bd6 {[%emt 0:00:32]} 11. O-O {[%emt 0:01:48]} O-O {[%emt 0:02:18]} 12. Qh5 {[%emt 0:01:26]} g6 {[%emt 0:00:23]} 13. Qf3 {[%emt 0:00:33]} Bd7 {[%emt 0:02:17]} 14. Rfe1 {[%emt 0:03:26]} Qh4 {[%emt 0:01:11]} 15. g3 {[%emt 0:03:03]} Qg4 {[%emt 0:00:35]} 16. Qf6 {[%emt 0:01:45]} Qh3 {[%emt 0:02:03]} 17. c4 {[%emt 0:02:15]} Rae8 {[%emt 0:00:05]} 18. Bc3 {[%emt 0:00:05]} Be5 {[%emt 0:00:05]} 19. Bxe5 {[%emt 0:00:05]} Rxe5 {[%emt 0:00:05]} 20. Qxe5 {[%emt 0:00:05]} Bg4 {[%emt 0:00:05]} 21. Bf1 {[%emt 0:00:05]} Qh6 {[%emt 0:00:05]} 22. Qxc7 {[%emt 0:00:05]} Bf3 {[%emt 0:00:05]} 23. Bg2 {[%emt 0:00:05]} Bg4 {[%emt 0:00:05]} 24. Qxc6 {[%emt 0:00:05]} Rc8 {[%emt 0:00:05]} 25. Re8+ {[%emt 0:00:05]} Rxe8 {[%emt 0:00:05]} 26. Qxe8+ {[%emt 0:00:05]} Kg7 {[%emt 0:00:05]} 27. Bd5 {[%emt 0:00:05]} Qh3 {[%emt 0:00:05]} 28. Qxf7+ {[%emt 0:00:05]} 1-0

[Event "DVM U10 2024"]
[Site "Duesseldorf"]
[Date "2024.12.27"]
[Round "3"]
[White "Bashirova, Sona"]
[Black "Trunz, Daniel"]
[Result "1-0"]
[ECO "D06"]
[WhiteElo "1626"]
[BlackElo "1440"]
[Annotator "NA RC"]
[PlyCount "95"]
[EventDate "2024.12.23"]
[EventType "team-tourn"]
[EventRounds "7"]
[EventCountry "GER"]
[SourceTitle "playchess.com"]
[Source "ChessBase"]
[SourceQuality "1"]
[TimeControl "3300+5"]

1. d4 {[%emt 0:00:02]} d5 {[%emt 0:00:11]} 2. Bf4 {[%emt 0:00:05]} Bf5 {[%emt 0:00:23]} 3. c4 {[%emt 0:00:07]} e6 {[%emt 0:00:55]} 4. Nc3 {[%emt 0:00:10]} Bb4 {[%emt 0:00:56]} 5. e3 {[%emt 0:01:13]} Nf6 {[%emt 0:00:29]} 6. Nf3 {[%emt 0:00:14]} Ne4 {[%emt 0:01:35]} 7. Rc1 {[%emt 0:00:32]} O-O {[%emt 0:00:54]} 8. Be2 {[%emt 0:00:59]} c5 {[%emt 0:01:52]} 9. O-O {[%emt 0:01:27]} Nc6 {[%emt 0:02:40]} 10. a3 {[%emt 0:03:21]} Ba5 {[%emt 0:00:24]} 11. Nxe4 {[%emt 0:05:15]} Bxe4 {[%emt 0:02:03]} 12. dxc5 {[%emt 0:01:17]} b6 {[%emt 0:02:22]} 13. b4 {[%emt 0:00:38]} bxc5 {[%emt 0:01:48]} 14. bxa5 {[%emt 0:00:17]} Qxa5 {[%emt 0:03:03]} 15. cxd5 {[%emt 0:00:43]} exd5 {[%emt 0:00:28]} 16. Bd6 {[%emt 0:01:03]} Rfd8 {[%emt 0:00:54]} 17. Rxc5 {[%emt 0:03:48]} Qxa3 {[%emt 0:01:13]} 18. Rxc6 {[%emt 0:00:33]} Rxd6 {[%emt 0:00:49]} 19. Rxd6 {[%emt 0:00:13]} Qxd6 {[%emt 0:00:46]} 20. Bd3 {[%emt 0:01:18]} Bg6 {[%emt 0:02:39]} 21. Bxg6 {[%emt 0:00:15]} hxg6 {[%emt 0:00:20]} 22. Qd4 {[%emt 0:00:21]} a5 {[%emt 0:01:51]} 23. Rd1 {[%emt 0:00:21]} a4 {[%emt 0:05:57]} 24. Ra1 {[%emt 0:04:36]} a3 {[%emt 0:00:44]} 25. Nd2 {[%emt 0:02:30]} a2 {[%emt 0:02:45]} 26. Nb3 {[%emt 0:03:05]} Qd7 {[%emt 0:02:18]} 27. Nc1 {[%emt 0:00:47]} Qb5 {[%emt 0:01:06]} 28. Qd3 {[%emt 0:08:56]} Qc4 {[%emt 0:01:20]} 29. Qxc4 {[%emt 0:00:28]} dxc4 {[%emt 0:00:38]} 30. Rxa2 {[%emt 0:00:07]} Rd8 {[%emt 0:01:19]} 31. Kf1 {[%emt 0:00:47]} Rd1+ {[%emt 0:00:36]} 32. Ke2 {[%emt 0:00:03]} Rxc1 {[%emt 0:00:46]} 33. Kd2 {[%emt 0:00:51]} Rh1 {[%emt 0:01:51]} 34. h3 {[%emt 0:00:08]} Rh2 {[%emt 0:00:29]} 35. Kc3 {[%emt 0:00:14]} Rxg2 {[%emt 0:00:14]} 36. Kxc4 {[%emt 0:00:20]} Rh2 {[%emt 0:00:44]} 37. Ra8+ {[%emt 0:00:53]} Kh7 {[%emt 0:00:20]} 38. Ra7 {[%emt 0:00:10]} Rxf2 {[%emt 0:00:25]} 39. Kc5 {[%emt 0:00:51]} Rf5+ {[%emt 0:00:59]} 40. Kd6 {[%emt 0:00:09]} Rf6+ {[%emt 0:00:42]} 41. Ke7 {[%emt 0:00:13]} Re6+ {[%emt 0:01:01]} 42. Kf8 {[%emt 0:00:27]} Rc6 {[%emt 0:01:08]} 43. Re7 {[%emt 0:00:39]} Rf6 {[%emt 0:00:48]} 44. Rxf7 {[%emt 0:00:10]} Rxf7+ {[%emt 0:00:13]} 45. Kxf7 {[%emt 0:00:05]} Kh6 {[%emt 0:00:15]} 46. e4 {[%emt 0:00:21]} Kg5 {[%emt 0:00:22]} 47. e5 {[%emt 0:00:05]} Kf5 {[%emt 0:00:05]} 48. e6 {[%emt 0:00:05]} 1-0